bitfinex-derivatives/quotes_SOLF0:USTF0_20260105
["timestamp","ask_amount","ask_price","bid_price","bid_amount"]
[1767629250660,7.71675878,135.78,135.68,8.16189358]
[1767629250960,7.41366839,135.8,135.69,1.52709358]
[1767629250961,8.50110439,135.8,135.69,1.52709358]
[1767629251260,15.13030439,135.8,135.71,6.6333]
[1767629251646,1.087436,135.8,135.72,6.6327]
[1767629251850,1.087436,135.8,135.72,8.15979358]
[1767629252454,1.087436,135.8,135.73,6.6323]
[1767629253055,1.087436,135.8,135.74,6.6317]
[1767629253361,1.08787233,135.83,135.72,1.52709358]
[1767629253963,1.08787233,135.83,135.74,1.52709358]
[1767629254565,1.08787233,135.83,135.76,6.6309]
[1767629255453,1.08787233,135.83,135.77,6.6304]
[1767629255662,87.08,135.84,135.77,6.6304]
[1767629256056,88.1685062,135.84,135.76,1.52709358]
[1767629256562,87.08,135.84,135.76,1.52709358]
[1767629256762,87.08,135.84,135.77,6.6304]
[1767629257260,88.16892533,135.84,135.76,1.52709358]
[1767629257456,1.08892533,135.83,135.72,103.1764]
[1767629257664,1.08892533,135.83,135.73,1.52709358]
[1767629259167,1.08892533,135.83,135.74,8.15869358]
[1767629259356,1.08892533,135.83,135.74,1.52709358]
[1767629260567,1.08892533,135.83,135.75,6.6314]
[1767629260762,87.08,135.84,135.75,1.52709358]
[1767629261064,87.08,135.84,135.78,0.04707487]
[1767629261767,7.71447808,135.86,135.78,1.57416845]
[1767629262365,1.08807808,135.86,135.78,8.20386845]
[1767629262564,1.08807808,135.86,135.78,0.04707487]
[1767629262773,1.08701215,135.85,135.78,0.04707487]
[1767629266065,1.0854504,135.84,135.78,0.04707487]
[1767629269959,1.08345519,135.87,135.78,1.57416845]
[1767629270368,1.08345519,135.87,135.78,1.52709358]
[1767629270664,1.08345519,135.87,135.78,8.15699358]
[1767629270863,1.08345519,135.87,135.78,1.52709358]
[1767629271969,1.08345519,135.87,135.79,6.6294]
[1767629272163,88.10202855,135.89,135.8,1.52709358]
[1767629272364,1.08202855,135.88,135.8,1.52709358]
[1767629272760,1.08202855,135.88,135.81,6.6285]
[1767629272966,87.02,135.89,135.8,1.52709358]
[1767629273167,1.08129139,135.91,135.82,1.4474278]
[1767629273362,1.08129139,135.91,135.83,1.4474278]
[1767629274468,5.62700491,135.9,135.79,1.4474278]
[1767629275667,5.62700491,135.9,135.74,125.2801]
[1767629275668,1.07993914,135.86,135.74,1.4474278]
[1767629275871,1.07993914,135.83,135.74,1.4474278]
[1767629276067,6.6281,135.82,135.74,1.4474278]
[1767629276367,1.07948893,135.8,135.72,0.50238]
[1767629277681,1.07948893,135.8,135.75,0.0468851]
[1767629277976,1.07948893,135.8,135.72,0.50238]
[1767629281279,7.70868893,135.8,135.72,0.50238]
[1767629281679,1.07948893,135.8,135.72,2.01515007]
[1767629281876,4.54660688,135.81,135.73,1.51277007]
[1767629282081,1.07560192,135.83,135.73,1.51277007]
[1767629283782,1.07560192,135.83,135.74,1.51277007]
[1767629284278,4.54660688,135.84,135.75,1.51277007]
[1767629284476,4.54660688,135.87,135.75,1.51277007]
[1767629284875,88.09439321,135.89,135.8,1.51277007]
[1767629285477,94.71919321,135.89,135.8,1.51277007]
[1767629285776,1.07398998,135.88,135.8,1.51277007]
[1767629286785,0.04726548,135.85,135.8,1.51277007]
[1767629287379,0.04726548,135.85,135.77,1.51277007]
[1767629287380,1.12048993,135.85,135.77,1.51277007]
[1767629287879,1.07322445,135.84,135.74,6.6318]
[1767629288081,1.07322445,135.83,135.73,1.51277007]
[1767629288292,88.09322445,135.83,135.73,1.51277007]
[1767629288478,88.09322445,135.83,135.73,8.14497007]
[1767629289577,1.07248384,135.89,135.75,1.51277007]
[1767629289780,1.07248384,135.92,135.8,1.51277007]
[1767629290489,1.07210223,135.95,135.82,1.51277007]
[1767629290682,1.07210223,135.93,135.82,1.51277007]
[1767629291578,1.07171809,135.91,135.82,1.51277007]
[1767629292584,0.0471329,135.88,135.79,8.14207007]
[1767629292986,7.69566389,135.9,135.79,8.14207007]
[1767629293385,7.69566389,135.9,135.8,8.14157007]
[1767629293573,1.07136389,135.9,135.81,1.51277007]
[1767629293777,6.6235,135.92,135.81,1.51277007]
[1767629293979,7.69452532,135.92,135.81,1.51277007]
[1767629294783,7.69452532,135.92,135.82,6.6279]
[1767629294982,1.07102532,135.92,135.83,1.51277007]
[1767629295289,88.07066877,135.95,135.85,8.13907007]
[1767629296591,88.07066877,135.95,135.87,1.51277007]
[1767629296889,0.04699333,135.91,135.87,1.51277007]
[1767629297380,0.04699333,135.91,135.86,6.626]
[1767629297587,0.04699333,135.91,135.84,93.5868]
[1767629297788,0.04699333,135.91,135.84,86.96]
[1767629297983,0.04699333,135.91,135.83,1.51277007]
[1767629298389,1.11620483,135.91,135.83,1.51277007]
[1767629298584,1.11620483,135.91,135.8,88.45277007]
[1767629298981,1.0692115,135.91,135.8,88.45277007]
[1767629299388,0.04740814,135.87,135.82,6.6279]
[1767629299889,0.04740814,135.87,135.82,1.51277007]
[1767629300589,0.04740814,135.87,135.83,6.6274]
[1767629302288,1.0692115,135.91,135.83,6.6274]
[1767629302685,1.0692115,135.91,135.83,8.14017007]
[1767629302989,86.98,135.92,135.83,8.14017007]
[1767629303892,86.98,135.92,135.84,6.6269]
[1767629305490,1.06688261,135.91,135.82,6.6278]
[1767629305986,1.06688261,135.91,135.8,1.51277007]
[1767629306192,1.02022315,135.89,135.8,1.51277007]
[1767629307496,1.02022315,135.89,135.81,6.6284]
[1767629307990,1.02022315,135.89,135.79,6.6293]
[1767629308298,1.01960872,135.86,135.77,1.51277007]
[1767629308593,1.01960872,135.85,135.77,1.51277007]
[1767629308984,1.01960872,135.85,135.77,8.14317007]
[1767629309691,7.64640872,135.85,135.77,1.51277007]
[1767629309890,1.01941543,135.84,135.75,6.6313]
[1767629310381,1.01941543,135.84,135.76,6.6309]
[1767629310780,1.01941543,135.84,135.74,1.51277007]
[1767629311696,1.01947807,135.87,135.77,1.46536406]
[1767629312487,1.01947807,135.87,135.78,1.46536406]
[1767629312896,1.01927374,135.84,135.75,8.09656406]
[1767629314497,1.01927374,135.84,135.76,1.46536406]
[1767629314698,12.19148992,135.87,135.77,1.46536406]
[1767629314990,1.01888304,135.86,135.77,1.46536406]
[1767629315692,1.01888304,135.86,135.74,8.09686406]
[1767629315893,1.01867776,135.85,135.74,1.46536406]
[1767629316799,1.01850398,135.82,135.72,0.50238]
[1767629316996,1.01850398,135.81,135.72,0.50238]
[1767629317798,1.01850398,135.81,135.72,1.96774406]
[1767629318695,6.6291,135.8,135.72,1.96774406]
[1767629320194,1.01780114,135.79,135.72,0.50238]
[1767629320400,7.64750114,135.79,135.72,0.50238]
[1767629321099,7.64750114,135.79,135.72,1.96774406]
[1767629321791,6.6297,135.79,135.72,1.96774406]
[1767629322998,87.99762464,135.82,135.73,1.46536406]
[1767629323597,1.01726832,135.81,135.73,1.46536406]
[1767629323898,6.629,135.8,135.73,1.46536406]
[1767629324401,7.64576832,135.81,135.73,1.46536406]
[1767629324900,1.01726832,135.81,135.72,0.50238]
[1767629325390,1.01690757,135.8,135.72,0.50238]
[1767629326691,6.6295,135.79,135.72,0.50238]
[1767629326892,1.01690757,135.8,135.72,1.96774406]
[1767629327293,1.01690757,135.8,135.73,6.6323]
[1767629327596,1.01690757,135.8,135.72,1.96774406]
[1767629328002,7.64590757,135.8,135.72,8.60054406]
[1767629328899,1.01690757,135.8,135.72,8.60054406]
[1767629329989,1.01690757,135.8,135.73,6.6323]
[1767629330305,1.01625723,135.84,135.74,1.46536406]
[1767629331498,107.61510688,135.87,135.74,1.46536406]
[1767629331499,1.01592938,135.83,135.74,1.46536406]
[1767629331703,1.01592938,135.82,135.74,1.46536406]
[1767629332595,7.64436717,135.81,135.74,1.46536406]
[1767629333199,1.01576717,135.81,135.74,1.46536406]
[1767629333703,1.01576717,135.81,135.72,0.50238]
[1767629333902,7.64425321,135.79,135.72,0.50238]
[1767629335400,0.04664404,135.77,135.72,0.50238]
[1767629336007,0.51190475,135.76,135.65,1.43633762]
[1767629336702,0.51190475,135.76,135.68,1.43633762]
[1767629337313,7.14300475,135.76,135.68,1.43633762]
[1767629337703,0.51190475,135.76,135.68,1.43633762]
[1767629337906,7.14543106,135.75,135.68,1.43633762]
[1767629338101,7.14543106,135.75,135.62,190.2325]
[1767629338102,0.51393106,135.75,135.65,1.43633762]
[1767629338611,0.51493266,135.74,135.65,1.43633762]
[1767629339605,7.14693266,135.74,135.65,1.43633762]
[1767629340313,103.137,135.78,135.66,1.43633762]
[1767629340314,87.55694445,135.75,135.66,1.43633762]
[1767629340816,0.51694445,135.75,135.68,1.44242112]
[1767629341311,0.51694445,135.75,135.65,8.07832112]
[1767629341514,0.51694445,135.75,135.66,1.44242112]
[1767629342208,6.6322,135.74,135.66,1.44242112]
[1767629342407,0.51694445,135.75,135.66,1.44242112]
[1767629342607,0.51933287,135.74,135.61,1.44242112]
[1767629343111,0.51933287,135.74,135.63,1.44242112]
[1767629343112,6.6328,135.73,135.63,1.44242112]
[1767629344315,6.633,135.72,135.64,1.44242112]
[1767629345211,190.1926,135.76,135.6,190.2667]
[1767629345212,0.52122402,135.76,135.65,1.44242112]
[1767629345417,87.58122402,135.76,135.65,1.44242112]
[1767629346212,6.632,135.74,135.65,1.44242112]
[1767629346916,6.632,135.74,135.66,1.44242112]
[1767629348315,6.6325,135.73,135.66,1.44242112]
[1767629348516,0.52485494,135.75,135.66,1.44242112]
[1767629348814,0.52485494,135.73,135.61,1.44242112]
[1767629349015,0.52485494,135.72,135.62,1.44242112]
[1767629350316,6.6339,135.71,135.62,1.44242112]
[1767629350520,0.52485494,135.72,135.62,1.44242112]
[1767629351522,6.6339,135.7,135.62,1.44242112]
[1767629351725,7.16138191,135.7,135.62,1.44242112]
[1767629352222,0.52748191,135.7,135.62,1.44242112]
[1767629352418,0.52748191,135.7,135.63,1.44242112]
[1767629354024,0.52748191,135.7,135.6,1.44242112]
[1767629355321,87.08,135.69,135.61,1.44242112]
[1767629355937,0.53085528,135.68,135.61,1.44242112]
[1767629356122,0.53085528,135.68,135.58,1.44242112]
[1767629356624,0.53085528,135.68,135.59,1.44242112]
[1767629357217,7.16618653,135.71,135.6,1.44242112]
[1767629357428,87.08,135.7,135.6,1.44242112]
[1767629357625,87.61248653,135.7,135.6,1.44242112]
[1767629357826,94.24648653,135.7,135.61,1.44242112]
[1767629358528,87.61248653,135.7,135.61,1.44242112]
[1767629358827,7.93606356,135.73,135.62,1.44242112]
[1767629359033,7.16497653,135.75,135.62,1.44242112]
[1767629359328,94.24497653,135.75,135.62,1.44242112]
[1767629359518,87.61327653,135.75,135.65,1.44242112]
[1767629360329,87.61327653,135.75,135.67,1.44242112]
[1767629360531,87.08,135.75,135.67,1.44242112]
[1767629361030,6.6306,135.77,135.68,1.44242112]
[1767629363535,0.53706615,135.77,135.68,1.44242112]
[1767629364836,87.08,135.77,135.68,1.44242112]
[1767629365233,87.08,135.77,135.69,1.44242112]
[1767629366140,87.08,135.77,135.7,1.44242112]
[1767629366624,6.63,135.78,135.7,1.44242112]
[1767629366832,87.08,135.77,135.7,1.44242112]
[1767629367852,7.40278703,135.83,135.7,1.44242112]
[1767629368037,0.53997493,135.81,135.71,8.07582112]
[1767629368233,6.629,135.8,135.71,8.07582112]
[1767629368432,0.54070084,135.79,135.71,1.44242112]
[1767629368632,0.54070084,135.79,135.69,1.44242112]
[1767629369245,190.1689,135.82,135.69,1.44242112]
[1767629369246,7.17130084,135.77,135.69,1.44242112]
[1767629369432,87.06,135.76,135.69,1.44242112]
[1767629369631,93.691,135.76,135.69,1.44242112]
[1767629369934,93.691,135.76,135.64,103.2338]
[1767629369935,0.54139785,135.75,135.66,1.44242112]
[1767629370337,7.17529378,135.72,135.63,8.07922112]
[1767629371037,0.54209378,135.72,135.64,6.6366]
[1767629371228,0.54209378,135.72,135.6,1.54236573]
[1767629371428,103.1749,135.73,135.6,1.54236573]
[1767629371429,0.54506613,135.7,135.6,1.54236573]
[1767629372141,6.6344,135.69,135.61,8.18036573]
[1767629372332,0.54506613,135.7,135.61,1.54236573]
[1767629372736,6.6348,135.69,135.61,1.54236573]
[1767629373445,7.18117518,135.69,135.61,1.54236573]
[1767629373743,7.18147518,135.68,135.58,1.54236573]
[1767629374135,197.65288703,135.71,135.58,1.54236573]
[1767629374136,0.54637518,135.67,135.58,1.54236573]
[1767629374336,6.6359,135.66,135.58,1.54236573]
[1767629375242,0.54637518,135.67,135.59,1.54236573]
[1767629376353,7.18187518,135.67,135.59,1.54236573]
[1767629376641,0.54637518,135.67,135.59,1.54236573]
[1767629376944,6.6353,135.68,135.6,1.54236573]
[1767629377442,103.72382463,135.73,135.61,1.54236573]
[1767629377736,87.62892463,135.72,135.61,1.54236573]
[1767629377945,6.6335,135.71,135.63,1.54236573]
[1767629378146,0.54892463,135.72,135.63,1.54236573]
[1767629378641,7.18192463,135.72,135.65,1.54236573]
[1767629378845,7.95233102,135.75,135.65,1.54236573]
[1767629379048,87.08,135.74,135.65,1.54236573]
[1767629379242,87.62954399,135.74,135.65,1.54236573]
[1767629380348,87.08,135.74,135.66,1.54236573]
[1767629380745,87.08,135.76,135.66,1.54236573]
[1767629381139,87.63075321,135.76,135.66,1.54236573]
[1767629381339,0.55134395,135.75,135.66,1.54236573]
[1767629382548,0.55134395,135.75,135.66,8.17816573]
[1767629382754,0.55134395,135.75,135.67,1.54236573]
[1767629384250,7.18284395,135.75,135.67,8.17766573]
[1767629385144,7.18284395,135.75,135.67,1.54236573]
[1767629385345,0.55370248,135.74,135.64,1.54236573]
[1767629386556,7.18600248,135.74,135.65,6.6362]
[1767629387050,0.55370248,135.74,135.65,1.54236573]
[1767629387246,0.55370248,135.74,135.65,8.17836573]
[1767629389248,7.18580248,135.74,135.65,1.54236573]
[1767629390147,0.55370248,135.74,135.65,1.54236573]
[1767629390353,0.55656674,135.73,135.65,1.54236573]
[1767629390856,0.55656674,135.71,135.62,1.54236573]
[1767629391448,0.55711539,135.74,135.62,1.54236573]
[1767629391649,0.55711539,135.76,135.63,1.54236573]
[1767629391855,0.55711539,135.74,135.63,1.54236573]
[1767629392759,6.633,135.72,135.64,1.54236573]
[1767629394351,6.6336,135.71,135.64,1.54236573]
[1767629394558,7.1936545,135.71,135.64,1.54236573]
[1767629399351,4.5582181,135.72,135.65,1.51815157]
[1767629399562,0.56250191,135.74,135.65,1.51815157]
[1767629399867,6.6331,135.72,135.65,1.51815157]
[1767629400568,7.19647315,135.71,135.63,6.6369]
[1767629400769,7.19647315,135.71,135.63,8.19194531]
[1767629401465,0.56297315,135.71,135.64,1.55504531]
[1767629402171,7.19637315,135.71,135.64,1.55504531]
[1767629402375,0.56297315,135.71,135.64,1.55504531]
[1767629402970,6.6324,135.73,135.65,1.55504531]
[1767629403170,0.56459136,135.73,135.65,1.55504531]
[1767629403672,7.19699136,135.73,135.66,1.55504531]
[1767629403878,91.6382181,135.75,135.66,1.55504531]
[1767629404557,98.83520966,135.75,135.67,8.19034531]
[1767629404962,87.08,135.77,135.68,1.55504531]
[1767629405161,93.7105,135.77,135.69,8.18924531]
[1767629405379,87.08,135.77,135.7,1.55504531]
[1767629407267,87.64680795,135.8,135.71,1.55504531]
[1767629407461,0.56680795,135.8,135.71,1.55504531]
[1767629408577,7.19590795,135.8,135.72,1.55504531]
[1767629409067,7.19590795,135.8,135.72,8.18794531]
[1767629409264,0.56680795,135.8,135.72,8.18794531]
[1767629409661,4.5582181,135.84,135.73,1.55504531]
[1767629409869,0.56762958,135.83,135.73,1.55504531]
[1767629410958,6.6281,135.82,135.73,1.55504531]
[1767629411164,6.6281,135.82,135.75,1.55504531]
[1767629411765,0.56762958,135.83,135.75,1.55504531]
[1767629411965,0.56844955,135.86,135.76,1.55504531]
[1767629412368,0.56844955,135.86,135.78,6.6299]
[1767629412674,0.56844955,135.86,135.79,1.55504531]
[1767629412874,0.56844955,135.86,135.75,1.55504531]
[1767629413676,0.56844955,135.86,135.78,1.55504531]
[1767629415573,0.56844955,135.86,135.78,8.18494531]
[1767629415961,0.0466566,135.83,135.78,8.18494531]
[1767629417463,0.0466566,135.83,135.75,1.55504531]
[1767629418470,0.0466566,135.83,135.77,1.55504531]
[1767629419062,4.5582181,135.86,135.77,1.55504531]
[1767629419272,5.12966783,135.86,135.78,1.55504531]
[1767629419872,92.14966783,135.88,135.79,1.55504531]
[1767629420073,0.57144973,135.87,135.79,1.55504531]
[1767629420478,0.57179864,135.84,135.75,1.55504531]
[1767629421271,0.57179864,135.84,135.76,1.55504531]
[1767629422582,87.59251271,135.87,135.77,1.55504531]
[1767629422789,0.57251271,135.86,135.77,1.55504531]
[1767629423477,0.5728498,135.84,135.77,1.55504531]
[1767629424476,1.85288306,135.81,135.77,1.55504531]
[1767629427380,1.85288306,135.81,135.77,8.18544531]
[1767629427582,87.57416589,135.86,135.77,1.55504531]
[1767629427781,1.85288306,135.83,135.77,1.55504531]
[1767629428585,1.85288306,135.83,135.78,6.6299]
[1767629429084,1.85288306,135.83,135.79,1.55504531]
[1767629429485,1.85288306,135.83,135.78,6.6299]
[1767629429882,1.85288306,135.81,135.76,8.18554531]
[1767629430082,1.85288306,135.81,135.76,1.55504531]
[1767629430584,0.57479058,135.84,135.76,1.55504531]
[1767629431287,4.54931924,135.85,135.76,1.55504531]
[1767629431585,4.54931924,135.85,135.77,1.54755396]
[1767629431989,0.57417492,135.87,135.78,1.54755396]
[1767629432693,0.57417492,135.87,135.79,1.54755396]
[1767629433790,4.54931924,135.88,135.82,6.628]
[1767629433982,87.57483754,135.9,135.81,104.65795396]
[1767629434187,0.57483754,135.9,135.82,1.59410213]
[1767629434386,0.57483754,135.9,135.84,6.6268]
[1767629436296,2.05483754,135.9,135.79,104.67065396]
[1767629436484,0.57576747,135.89,135.79,104.67065396]
[1767629436688,0.62233188,135.88,135.79,104.67065396]
[1767629436885,0.62233188,135.88,135.8,1.54755396]
[1767629437088,0.57576747,135.88,135.8,1.54755396]
[1767629437797,0.57576747,135.88,135.81,1.54755396]
[1767629440092,0.57665079,135.84,135.74,1.54755396]
[1767629441296,0.04725554,135.8,135.74,1.54755396]
[1767629441704,0.04725554,135.8,135.75,8.17875396]
[1767629441903,0.04725554,135.8,135.75,1.54755396]
[1767629452013,7.20955698,135.79,135.72,1.54755396]
[1767629452212,5.12937622,135.79,135.72,1.54755396]
[1767629452411,0.58031236,135.78,135.69,1.54755396]
[1767629452716,1.85524343,135.73,135.69,1.54755396]
[1767629453710,1.85524343,135.75,135.69,1.54755396]
[1767629456222,6.6311,135.76,135.69,1.54755396]
[1767629456415,1.85524343,135.75,135.7,1.50100946]
[1767629458215,1.85524343,135.75,135.67,95.09590946]
[1767629458421,1.85524343,135.73,135.68,1.50100946]
[1767629458815,1.51400127,135.75,135.68,1.50100946]
[1767629459017,1.85524343,135.72,135.68,1.50100946]
[1767629459812,1.85524343,135.72,135.65,1.50100946]
[1767629460018,1.85524343,135.7,135.65,1.50100946]
[1767629460219,1.85524343,135.69,135.65,1.50100946]
[1767629460419,1.85524343,135.69,135.63,1.50100946]
[1767629460621,6.6341,135.7,135.63,1.50100946]
[1767629460815,4.41451848,135.71,135.63,6.6372]
[1767629461021,6.6333,135.72,135.64,1.54336016]
[1767629461618,2.90051721,135.73,135.65,1.54336016]
[1767629462223,11.11634879,135.73,135.65,1.54336016]
[1767629462624,1.58343158,135.73,135.66,1.54336016]
[1767629462928,6.6317,135.75,135.68,0.04686502]
[1767629463327,8.21513158,135.75,135.68,0.04686502]
[1767629463530,6.632,135.74,135.68,0.04686502]
[1767629463732,1.58343158,135.75,135.68,0.04686502]
[1767629464130,8.21493158,135.75,135.68,0.04686502]
[1767629465439,6.6321,135.74,135.68,0.04686502]
[1767629465741,8.21553158,135.74,135.68,0.04686502]
[1767629466624,1.58343158,135.74,135.68,0.04686502]
[1767629468130,6.6329,135.72,135.68,0.04686502]
[1767629468732,6.6329,135.72,135.6,22.12]
[1767629468733,8.21633158,135.72,135.64,6.6368]
[1767629468928,6.6334,135.71,135.63,1.54336016]
[1767629469333,104.74413158,135.75,135.65,1.54336016]
[1767629469533,6.6329,135.73,135.65,1.54336016]
[1767629469934,8.21633158,135.73,135.65,1.54336016]
[1767629470127,6.6329,135.72,135.65,8.17966016]
[1767629471737,0.04646365,135.7,135.65,8.17966016]
[1767629471940,0.04646365,135.7,135.66,6.6358]
[1767629472336,0.04646365,135.7,135.65,1.54336016]
[1767629472835,1.58343158,135.75,135.67,1.54336016]
[1767629474240,1.58343158,135.75,135.7,0.04655524]
[1767629474630,8.21543158,135.74,135.7,0.04655524]
[1767629474833,8.21543158,135.74,135.67,1.54336016]
[1767629475233,1.58343158,135.74,135.67,1.54336016]
[1767629477244,1.58343158,135.74,135.67,8.17856016]
[1767629477748,88.64343158,135.76,135.67,1.54336016]
[1767629478242,88.64343158,135.76,135.67,8.17846016]
[1767629478636,1.58343158,135.75,135.67,8.17846016]
[1767629479541,1.58343158,135.72,135.61,1.54336016]
[1767629479745,1.62990384,135.72,135.61,1.54336016]
[1767629480045,1.58343158,135.72,135.61,1.54336016]
[1767629480237,1.58343158,135.71,135.63,6.6373]
[1767629480840,1.58343158,135.71,135.63,8.18066016]
[1767629482045,1.58343158,135.7,135.63,1.54336016]
[1767629482239,1.58343158,135.7,135.6,1.54336016]
[1767629482943,0.04708277,135.66,135.6,1.54336016]
[1767629483736,0.04708277,135.66,135.59,93.659]
[1767629483737,8.26641435,135.66,135.59,6.639]
[1767629483943,8.26641435,135.66,135.59,8.18236016]
[1767629484546,8.26641435,135.66,135.59,1.54336016]
[1767629485446,6.6364,135.65,135.59,1.54336016]
[1767629486048,1.63051435,135.66,135.59,8.18246016]
[1767629486649,1.63051435,135.66,135.59,1.54336016]
[1767629486855,0.04708277,135.66,135.59,1.54336016]
[1767629488552,0.04708277,135.66,135.59,8.18256016]
[1767629488752,0.04708277,135.66,135.59,1.54336016]
[1767629489354,0.04708277,135.66,135.56,138.71721187]
[1767629489355,0.04708277,135.66,135.6,8.18206016]
[1767629489746,1.63051435,135.66,135.57,1.54336016]
[1767629489955,1.58343158,135.66,135.57,1.54336016]
[1767629490557,1.58343158,135.66,135.56,138.71721187]
[1767629490558,1.58343158,135.66,135.58,8.18266016]
[1767629490851,1.58343158,135.66,135.58,1.54336016]
[1767629491447,1.58343158,135.66,135.6,6.6387]
[1767629491958,15.52919195,135.69,135.61,6.6382]
[1767629492458,1.4901181,135.68,135.61,6.6382]
[1767629497562,1.4901181,135.68,135.6,8.21801625]
[1767629497765,1.4901181,135.67,135.6,1.57921625]
[1767629498468,8.1256181,135.67,135.6,1.57921625]
[1767629499666,0.04654344,135.65,135.6,1.57921625]
[1767629500064,1.53666154,135.65,135.58,1.57921625]
[1767629500558,1.4901181,135.65,135.58,1.57921625]
[1767629500759,8.1269181,135.65,135.58,1.57921625]
[1767629504561,11.02995279,135.65,135.58,1.57921625]
[1767629504964,0.04656888,135.63,135.58,1.57921625]
[1767629506267,0.04656888,135.63,135.58,8.21891625]
[1767629507266,0.04656888,135.63,135.59,1.57921625]
[1767629513474,1.51685084,135.62,135.54,1.64375119]
[1767629513967,8.15475084,135.62,135.54,1.64375119]
[1767629515169,1.51685084,135.6,135.54,1.64375119]
[1767629515360,1.56374161,135.59,135.52,1.64375119]
[1767629515868,4.4667763,135.59,135.52,1.64375119]
[1767629517162,1.56374161,135.59,135.52,1.64375119]
[1767629517564,1.56374161,135.59,135.53,1.64375119]
[1767629517965,0.04689077,135.59,135.53,1.64375119]
[1767629519075,0.04689077,135.59,135.54,8.28535119]
[1767629519475,1.51685084,135.61,135.54,8.28535119]
[1767629519864,0.04706308,135.58,135.54,8.28535119]
[1767629521073,1.51685084,135.61,135.55,1.63004652]
[1767629521468,1.51685084,135.61,135.49,103.3517]
[1767629521469,8.15525084,135.61,135.53,1.63004652]
[1767629522571,3.37548507,135.61,135.54,1.63004652]
[1767629523078,1.85863423,135.59,135.54,1.63004652]
[1767629527570,1.54655755,135.6,135.54,1.63004652]
[1767629527771,10.04399178,135.6,135.54,1.63004652]
[1767629529582,1.54655755,135.6,135.54,1.63004652]
[1767629530084,3.40519178,135.59,135.52,1.63004652]
[1767629531385,1.54655755,135.59,135.52,1.63004652]
[1767629531584,1.54655755,135.59,135.52,8.27274652]
[1767629532388,1.54655755,135.59,135.53,1.63004652]
[1767629533084,1.85863423,135.6,135.53,8.27204652]
[1767629533276,1.85863423,135.6,135.54,1.63004652]
[1767629533481,3.40519178,135.6,135.54,1.63004652]
[1767629533686,103.244,135.64,135.54,8.27174652]
[1767629533884,1.85863423,135.61,135.55,1.63004652]
[1767629534084,3.40519178,135.61,135.55,1.63004652]
[1767629534586,10.04359178,135.61,135.55,1.63004652]
[1767629534788,1.54655755,135.64,135.56,6.6407]
[1767629534983,3.40519178,135.64,135.57,1.63004652]
[1767629535183,3.40519178,135.64,135.57,1.67711495]
[1767629535380,1.54655755,135.63,135.57,0.04706843]
[1767629535683,3.40519178,135.62,135.57,0.04706843]
[1767629538693,1.85863423,135.6,135.57,0.04706843]
[1767629540283,1.85863423,135.6,135.55,1.63004652]
[1767629540485,3.40519178,135.6,135.54,6.6413]
[1767629541489,1.54655755,135.59,135.53,1.63004652]
[1767629541701,1.85863423,135.56,135.51,1.63004652]
[1767629542879,1.85863423,135.56,135.51,8.27324652]
[1767629543083,1.85863423,135.56,135.51,1.63004652]
[1767629544191,88.68655755,135.6,135.51,1.63004652]
[1767629544389,3.40519178,135.59,135.51,1.63004652]
[1767629544782,1.85863423,135.59,135.52,1.63004652]
[1767629546688,1.85863423,135.59,135.54,6.6417]
[1767629547284,3.40519178,135.59,135.53,8.27214652]
[1767629547483,3.40519178,135.59,135.53,1.63004652]
[1767629547885,3.40519178,135.59,135.54,6.6417]
[1767629548090,0.04683789,135.57,135.54,6.6417]
[1767629549789,0.04683789,135.57,135.53,1.63004652]
[1767629549989,0.04683789,135.57,135.51,1.63004652]
[1767629550591,1.85863423,135.56,135.51,8.27274652]
[1767629550982,1.85863423,135.56,135.48,190.4379]
[1767629550983,3.44723154,135.56,135.48,88.64233509]
[1767629551394,3.44723154,135.56,135.49,1.56233509]
[1767629552185,3.44723154,135.56,135.51,6.6431]
[1767629552389,3.44723154,135.56,135.49,1.56233509]
[1767629553396,3.44723154,135.56,135.49,8.20633509]
[1767629553999,1.58859731,135.56,135.5,6.6436]
[1767629554201,1.58859731,135.61,135.49,1.56233509]
[1767629554392,1.85863423,135.57,135.49,1.56233509]
[1767629554788,1.85863423,135.57,135.52,6.6426]
[1767629555902,1.85863423,135.6,135.53,8.20453509]
[1767629556095,3.44723154,135.6,135.53,1.56233509]
[1767629556405,10.08603154,135.6,135.53,1.56233509]
[1767629556597,0.04679881,135.58,135.53,1.56233509]
[1767629557196,0.04679881,135.58,135.53,8.20433509]
[1767629559106,1.58859731,135.63,135.54,1.56233509]
[1767629559307,1.85863423,135.62,135.54,1.56233509]
[1767629560005,3.44723154,135.62,135.54,1.56233509]
[1767629560207,10.08503154,135.62,135.54,8.20383509]
[1767629560508,1.58859731,135.61,135.54,8.20383509]
[1767629560800,1.85863423,135.6,135.54,8.20383509]
[1767629561401,3.44723154,135.6,135.54,6.6415]
[1767629562105,3.44723154,135.6,135.56,0.04708167]
[1767629563407,1.58859731,135.59,135.56,0.04708167]
[1767629563612,1.85863423,135.58,135.52,8.20473509]
[1767629563813,3.44723154,135.59,135.52,1.56233509]